bitfinex-derivatives/quotes_ETHF0:USTF0_20251013
["timestamp","ask_amount","ask_price","bid_price","bid_amount"]
[1760363384103,3.17494189,4132.5,4132.4,6.4315]
[1760363384104,0.00224882,4132.5,4132.4,6.4315]
[1760363384301,0.43746882,4132.5,4132.4,0.276]
[1760363384508,0.43746882,4132.5,4132.4,3.4838]
[1760363384509,0.00224882,4132.5,4132.4,3.4838]
[1760363384806,0.00224882,4132.5,4132.4,0.276]
[1760363385008,0.00224882,4132.5,4131.8,0.00272823]
[1760363385009,1.08808,4132.4,4131.8,0.00272823]
[1760363385199,6.64689159,4132.5,4131.3,0.276]
[1760363385200,0.43533,4131.4,4131.3,0.276]
[1760363385396,3.21464277,4132.3,4131.3,0.276]
[1760363385600,0.43527,4132.1,4131.4,3.2401]
[1760363385907,3.2078,4132.4,4131.3,0.276]
[1760363385908,0.43533,4131.5,4131.3,0.276]
[1760363386104,3.09266765,4132.0,4130.7,3.2078]
[1760363386105,3.2078,4131.8,4130.7,3.2078]
[1760363386405,0.43538,4131.0,4130.8,0.276]
[1760363386796,0.43536,4131.2,4130.8,0.276]
[1760363386998,0.43536,4131.2,4130.7,3.2078]
[1760363386999,3.1166855,4130.9,4129.7,3.2078]
[1760363387206,3.2078,4130.8,4129.8,0.276]
[1760363387402,0.43541,4130.7,4129.9,3.1535]
[1760363387606,3.2078,4130.8,4129.9,3.1535]
[1760363387803,3.17356485,4130.7,4129.8,0.276]
[1760363388200,3.2078,4130.3,4129.8,0.276]
[1760363388508,3.81549,4129.9,4129.8,0.276]
[1760363388916,3.63134638,4129.9,4129.8,0.276]
[1760363389305,3.2078,4130.8,4129.8,6.6373]
[1760363389503,0.43535,4131.3,4129.8,6.6373]
[1760363389815,3.19585638,4131.3,4131.2,3.1535]
[1760363390104,3.2078,4131.8,4131.2,3.4295]
[1760363390405,3.38,4132.3,4131.7,0.43529]
[1760363390611,3.2078,4132.4,4131.8,0.276]
[1760363390904,0.00224882,4132.5,4132.4,3.1535]
[1760363391104,0.00224882,4132.5,4132.4,3.4838]
[1760363391311,3.5610584,4132.4,4131.7,0.4353]
[1760363391509,0.43525,4132.3,4131.8,0.276]
[1760363391701,3.1258284,4132.4,4131.8,0.276]
[1760363391903,0.00224882,4132.5,4132.4,3.1535]
[1760363392211,3.2078,4133.9,4132.7,2.43869]
[1760363392505,3.2078,4133.9,4133.6,0.43509]
[1760363392807,3.2078,4133.9,4133.2,3.2078]
[1760363392808,3.2078,4134.6,4133.7,0.276]
[1760363393008,0.43505,4134.1,4133.8,0.276]
[1760363393213,3.1177817,4134.1,4133.9,0.276]
[1760363393411,0.00233088,4134.1,4133.9,0.276]
[1760363393906,3.2078,4135.1,4134.0,3.1535]
[1760363394210,0.43501,4134.5,4133.9,3.91886]
[1760363394614,0.43502,4134.4,4133.9,3.4838]
[1760363394907,3.07986558,4134.4,4133.8,0.00279025]
[1760363395111,0.43505,4134.1,4134.0,3.4295]
[1760363395304,0.00190943,4134.4,4134.0,3.4295]
[1760363395305,0.43505,4134.2,4134.1,3.1535]
[1760363395703,0.00190943,4134.4,4134.0,0.276]
[1760363396001,0.00190943,4134.4,4134.3,6.3613]
[1760363396203,0.43503,4134.3,4134.0,0.276]
[1760363396398,0.43505,4134.1,4134.0,0.276]
[1760363396907,0.43503,4134.3,4134.0,0.276]
[1760363397109,0.43505,4134.2,4134.0,0.276]
[1760363398007,0.43505,4134.2,4134.1,0.276]
[1760363398008,3.38,4134.2,4134.1,0.276]
[1760363398211,3.81504,4134.2,4134.1,0.276]
[1760363398508,6.95850736,4134.2,4134.1,0.11685999]
[1760363398707,3.81507,4133.9,4133.8,2.5e-07]
[1760363398908,0.43512,4133.4,4133.3,3.2078]
[1760363399113,0.43512,4133.4,4133.3,3.4838]
[1760363399609,0.43523,4132.4,4132.2,3.2078]
[1760363399803,0.43523,4132.4,4132.3,0.276]
[1760363400001,1.0878,4133.5,4132.3,3.86473]
[1760363400208,0.43523,4132.4,4132.3,0.276]
[1760363400612,3.38,4132.3,4132.2,2.19e-06]
[1760363400916,0.43538,4131.0,4130.7,3.2078]
[1760363401103,0.43538,4131.0,4130.8,0.276]
[1760363401309,3.81538,4131.0,4130.8,0.276]
[1760363401504,3.81538,4131.0,4130.0,0.43548]
[1760363401505,0.43545,4130.3,4130.2,3.2078]
[1760363401703,3.8155,4129.8,4129.7,3.2078]
[1760363402011,0.43556,4129.3,4129.2,0.24217473]
[1760363402206,3.17021497,4129.8,4129.2,0.5205354]
[1760363402417,0.00218491,4130.3,4129.2,0.5205354]
[1760363402715,0.00218491,4130.3,4127.6,1.08934]
[1760363402716,0.43567,4128.2,4128.1,3.2078]
[1760363402907,0.43561,4128.8,4128.1,0.276]
[1760363403108,0.43567,4128.3,4128.1,3.4838]
[1760363403307,0.43567,4128.3,4126.5,1.3507]
[1760363403308,0.43577,4127.3,4127.1,3.2078]
[1760363403509,0.43583,4126.7,4126.6,3.2078]
[1760363403705,0.00239851,4126.7,4126.6,3.48554834]
[1760363404015,0.00239851,4126.7,4126.6,6.63904834]
[1760363404211,0.00239851,4126.7,4126.6,3.48554834]
[1760363404410,6.49991366,4126.7,4126.6,0.00174834]
[1760363404716,0.00239851,4126.7,4126.6,0.00174834]
[1760363404918,0.00239851,4126.7,4126.6,6.36304834]
[1760363405116,0.00239851,4126.7,4126.6,3.20954834]
[1760363405317,3.10544172,4126.7,4126.6,0.00174834]
[1760363405516,3.10544172,4126.7,4126.6,3.48554834]
[1760363405718,0.00239851,4126.7,4126.6,3.48554834]
[1760363406026,0.00239851,4126.7,4126.6,7.07488834]
[1760363406414,0.43566,4128.3,4126.6,7.07488834]
[1760363406713,3.14737666,4127.9,4127.7,3.2078]
[1760363407014,3.2078,4128.5,4127.7,3.2078]
[1760363407015,3.38,4128.5,4127.8,0.276]
[1760363407211,3.38,4129.4,4128.2,3.2078]
[1760363407411,0.00210098,4129.4,4129.1,0.43557]
[1760363407714,0.00210098,4129.4,4127.8,3.2078]
[1760363407715,3.2078,4129.2,4127.8,3.2078]
[1760363408112,0.43577,4127.3,4126.6,3.20954834]
[1760363408313,3.3428,4128.1,4127.2,3.2078]
[1760363408613,3.2078,4128.5,4126.6,0.00174834]
[1760363408614,3.18857528,4127.2,4126.6,0.00174834]
[1760363408816,3.64363,4126.7,4126.6,0.00174834]
[1760363409116,3.2078,4126.7,4126.6,0.00174834]
[1760363409310,6.33077194,4126.7,4126.6,0.00174834]
[1760363409516,6.33077194,4126.7,4124.7,3.2078]
[1760363409714,3.2078,4125.6,4124.8,3.4838]
[1760363409922,0.43601,4125.0,4124.8,0.276]
[1760363410115,3.10849073,4125.5,4124.8,0.276]
[1760363410424,0.43603,4124.8,4124.7,0.276]
[1760363410716,0.43862301,4124.8,4124.7,0.27835525]
[1760363410917,3.57747434,4124.8,4124.7,0.27835525]
[1760363411708,3.57747434,4124.8,4123.2,3.45032713]
[1760363411709,0.43619,4123.4,4123.2,3.45032713]
[1760363411913,3.2078,4123.7,4123.3,0.276]
[1760363412116,0.43605,4124.6,4123.4,3.1535]
[1760363412312,3.21549253,4124.5,4124.1,3.1535]
[1760363412510,3.21549253,4124.5,4124.0,3.2078]
[1760363412511,3.21549253,4124.7,4124.6,0.43605]
[1760363412820,0.00259301,4124.8,4124.6,3.43123203]
[1760363413021,0.00259301,4124.8,4124.6,0.00173203]
[1760363413022,6.79641002,4124.7,4124.6,0.00173203]
[1760363413416,0.43619,4123.3,4122.2,3.1535]
[1760363413615,0.43619,4123.3,4123.2,7.13e-06]
[1760363413616,3.64399,4123.3,4123.2,7.13e-06]
[1760363413923,6.79656002,4123.3,4123.2,7.13e-06]
[1760363414512,6.79656002,4123.3,4123.2,1.24e-06]
[1760363415419,0.4364,4121.4,4121.1,0.215]
[1760363415621,3.2078,4121.6,4121.2,0.215]
[1760363415818,3.17717138,4121.3,4120.3,3.1535]
[1760363416020,0.43651,4120.3,4119.7,3.2078]
[1760363416220,3.2078,4120.5,4119.7,3.2078]
[1760363416221,3.2078,4120.0,4119.7,0.276]
[1760363416417,3.2078,4120.0,4119.7,0.00281755]
[1760363416418,0.44707,4119.8,4119.7,0.00281755]
[1760363416621,0.44707,4119.8,4118.2,3.2078]
[1760363416622,0.43659,4119.5,4118.5,0.276]
[1760363416827,0.43659,4119.5,4116.6,10.92255]
[1760363416828,0.43675,4118.1,4116.4,3.2078]
[1760363417024,0.43677,4117.8,4116.7,3.2078]
[1760363417326,3.14371734,4117.7,4117.3,0.276]
[1760363417625,0.276,4118.8,4117.3,0.276]
[1760363417626,3.2078,4119.0,4117.5,3.2852]
[1760363417824,3.2078,4118.2,4117.3,1.33064871]
[1760363418030,0.0105,4118.7,4117.6,0.276]
[1760363418031,0.43669,4118.6,4117.6,0.276]
[1760363418229,0.43669,4118.6,4117.3,1.33064871]
[1760363418230,0.4473,4117.6,4117.3,0.00234871]
[1760363418416,0.0105,4117.5,4117.3,0.00234871]
[1760363418616,0.0105,4118.2,4117.3,0.00234871]
[1760363418918,10.91178,4120.7,4118.0,3.2852]
[1760363418919,3.2078,4119.7,4118.0,3.2852]
[1760363419123,3.2078,4119.7,4119.0,3.2078]
[1760363419320,3.11824042,4119.4,4119.2,3.2852]
[1760363419522,3.11824042,4119.6,4119.3,0.276]
[1760363419725,3.2078,4119.7,4119.3,0.276]
[1760363420026,3.13660086,4119.6,4119.5,3.72179]
[1760363420225,0.00269745,4120.0,4119.8,3.2852]
[1760363420424,0.00269745,4120.0,4119.9,6.493]
[1760363420630,0.00269745,4120.0,4119.3,3.2078]
[1760363420929,0.00269745,4120.0,4119.9,3.2852]
[1760363420930,3.13929831,4120.0,4119.9,3.2852]
[1760363421126,0.0105,4122.2,4120.1,10.91313]
[1760363421127,3.2078,4121.7,4120.1,10.91313]
[1760363421331,3.2078,4121.7,4121.4,0.43639]
[1760363421530,3.2078,4121.7,4121.6,3.2852]
[1760363421728,3.2078,4122.7,4121.6,6.493]
[1760363421928,3.2078,4123.2,4121.6,6.493]
[1760363422227,0.0028561,4122.7,4122.4,0.43628]
[1760363422531,0.0028561,4122.7,4122.6,3.2078]
[1760363422833,0.0028561,4122.7,4121.6,0.00202222]
[1760363422834,0.0028561,4122.7,4122.1,0.43631]
[1760363423030,0.0028561,4122.7,4121.8,6.493]
[1760363423031,0.0028561,4122.7,4122.5,3.64407]
[1760363423233,3.2078,4123.9,4122.6,4.37586]
[1760363423530,3.2078,4123.9,4123.5,3.2852]
[1760363423724,0.43603,4124.8,4123.8,3.2078]
[1760363423926,0.43608,4124.3,4123.8,3.2078]
[1760363424125,0.43608,4124.3,4121.8,1.09085]
[1760363424126,0.43618,4123.5,4123.1,3.2078]
[1760363424429,0.00253227,4123.5,4123.4,3.2852]
[1760363424631,0.00253227,4123.5,4123.4,0.275]
[1760363425130,0.00253227,4123.5,4123.4,3.99638]
[1760363425344,3.2078,4125.2,4124.3,0.43608]
[1760363425541,3.2078,4125.2,4124.4,0.275]
[1760363425724,3.64379,4125.2,4124.6,3.2078]
[1760363425925,0.43604,4124.8,4124.6,3.2078]
[1760363426132,0.43604,4124.7,4124.3,3.2078]
[1760363426328,6.3463,4125.7,4124.7,0.43603]
[1760363426532,0.00275904,4125.7,4125.2,3.2078]
[1760363426731,0.00275904,4125.7,4125.6,3.2852]
[1760363427124,3.2078,4126.9,4125.6,4.6135]
[1760363427325,0.43586,4126.5,4126.2,3.2078]
[1760363427532,3.18682477,4126.8,4126.7,3.2852]
[1760363427734,2.3928,4127.9,4127.1,0.43578]
[1760363427930,2.3928,4127.9,4127.2,3.4828]
[1760363427931,0.43576,4127.5,4127.2,3.4828]
[1760363428130,0.43577,4127.3,4127.2,3.48494381]
[1760363428439,3.12643968,4127.4,4127.2,0.27714381]
[1760363428638,0.00253317,4127.5,4127.2,0.27714381]
[1760363428639,0.00253317,4127.5,4127.3,3.2852]
[1760363428934,0.00253317,4127.5,4127.2,0.27714381]
[1760363429132,10.88543,4130.7,4127.2,0.27714381]
[1760363429133,0.4355,4129.9,4128.7,3.2852]
[1760363429334,3.2078,4130.5,4129.2,3.2078]
[1760363429636,3.1799,4129.7,4129.3,0.275]
[1760363429835,3.61542,4129.7,4129.4,0.275]
[1760363430036,0.43775183,4129.7,4129.5,0.275]
[1760363431237,0.00223183,4129.7,4129.5,0.275]
[1760363431426,0.00223183,4129.7,4129.6,3.2852]
[1760363432033,0.00223183,4129.7,4129.6,3.72072]
[1760363432231,0.4354,4130.8,4129.5,0.275]
[1760363432232,0.4354,4130.8,4129.9,3.2852]
[1760363432433,3.2078,4130.4,4129.4,3.2078]
[1760363432632,3.2078,4130.4,4129.5,0.275]
[1760363432633,0.43548,4130.1,4129.5,0.275]
[1760363432831,3.2078,4130.4,4129.5,0.275]
[1760363433233,3.2078,4130.4,4129.4,3.2078]
[1760363433234,3.17881261,4130.3,4129.4,3.2078]
[1760363433431,0.43546,4130.2,4130.0,3.2852]
[1760363433633,0.43546,4130.2,4129.3,3.2078]
[1760363433634,3.2078,4130.2,4129.3,3.2078]
[1760363433839,3.1799,4130.3,4128.3,3.2852]
[1760363433840,3.2078,4129.4,4128.3,3.2852]
[1760363434038,0.4356,4128.9,4128.5,3.2852]
[1760363434234,0.43562,4128.7,4128.4,3.4828]
[1760363434434,0.43562,4128.7,4128.5,3.2852]
[1760363434747,3.52712927,4129.3,4128.6,0.275]
[1760363435242,3.09156927,4129.3,4128.7,0.275]
[1760363435439,3.09156927,4129.3,4128.4,3.2078]
[1760363435634,3.09156927,4129.3,4128.5,0.275]
[1760363435934,3.2078,4129.6,4128.8,0.4356]
[1760363436137,0.43553,4129.5,4128.9,0.71059]
[1760363436337,3.2078,4129.6,4128.9,0.275]
[1760363436338,6.39098948,4129.6,4128.9,0.275]
[1760363436536,3.64328,4130.1,4129.4,0.43554]
[1760363436731,3.64328,4130.1,4129.5,0.275]
[1760363436931,3.10999353,4130.3,4130.2,0.43546]
[1760363437137,3.2078,4130.6,4130.2,3.9975873]
[1760363437338,3.2078,4131.6,4130.3,3.2852]
[1760363437544,3.64311,4131.6,4131.1,0.43536]
[1760363437739,6.82301,4131.6,4131.2,0.275]
[1760363437937,3.2078,4132.1,4131.3,0.71034]
[1760363438140,3.2078,4131.6,4131.4,0.275]
[1760363438333,3.11599456,4132.0,4131.4,0.275]
[1760363438638,0.00169774,4132.0,4131.9,3.2852]
[1760363438939,0.00169774,4132.0,4131.8,0.43528]
[1760363439141,0.00169774,4132.0,4131.9,3.5602]
[1760363439442,1.08777,4133.6,4131.9,3.5602]
[1760363439443,0.43511,4133.5,4133.0,0.43516]
[1760363439631,0.43511,4133.5,4131.7,1.08824]
[1760363439632,0.43517,4133.0,4132.6,3.2078]
[1760363439940,3.61505,4133.2,4132.7,0.275]
[1760363440143,0.43516,4133.1,4132.7,0.275]
[1760363440439,0.43516,4133.1,4132.9,0.43517]
[1760363440440,0.00308537,4133.1,4132.9,0.43517]
[1760363440639,0.43824537,4133.1,4132.7,0.275]
[1760363440942,0.43824537,4133.1,4132.3,3.72044]
[1760363440943,0.00308537,4133.1,4133.0,6.493]
[1760363441142,0.43495,4135.1,4134.5,0.435]
[1760363441339,3.2078,4135.7,4135.1,0.43494]
[1760363441535,3.2078,4136.4,4135.3,0.43491]
[1760363441730,3.2078,4137.1,4135.4,0.275]
[1760363441930,3.19692652,4136.5,4136.1,3.2078]
[1760363442139,0.00222689,4136.5,4136.2,3.5602]
[1760363442329,0.00222689,4136.5,4136.3,0.275]
[1760363442531,0.00222689,4136.5,4136.4,0.274]
[1760363442735,0.00222689,4136.5,4136.4,3.5592]
[1760363442939,0.00222689,4136.5,4136.4,3.99401]
[1760363443135,0.00222689,4136.5,4136.4,3.5592]
[1760363443633,3.2078,4138.6,4137.3,3.2852]
[1760363443933,3.2078,4138.6,4137.4,0.274]
[1760363444137,3.1799,4137.9,4136.6,3.2078]
[1760363444335,3.1799,4137.9,4136.7,0.274]
[1760363444535,3.2078,4137.0,4136.5,3.2852]
[1760363444733,3.2078,4137.0,4136.1,3.21046888]
[1760363444734,0.43477,4136.8,4136.6,0.274]
[1760363445038,0.43477,4136.8,4136.7,0.274]
[1760363445039,3.61467,4136.8,4136.7,0.274]
[1760363445250,0.43477,4136.8,4136.7,0.274]
[1760363445538,0.43477,4136.8,4136.1,0.00266888]
[1760363445539,1.08695,4136.7,4136.1,0.00266888]
[1760363445732,3.2078,4136.2,4135.0,6.6708]
[1760363445936,1.08699,4136.6,4134.7,0.43498]
[1760363445937,0.43491,4135.5,4134.7,0.43498]
[1760363446135,1.08692,4136.8,4134.4,3.2078]
[1760363446136,3.09842165,4136.1,4134.9,3.463]
[1760363446337,3.2078,4136.2,4135.1,3.463]
[1760363446530,3.2078,4136.2,4135.5,3.2078]
[1760363446737,3.2078,4137.6,4136.4,3.2817]
[1760363446943,3.2078,4138.1,4136.7,3.2817]
[1760363447135,0.43466,4137.8,4137.1,3.2817]
[1760363447437,0.43684488,4137.9,4137.2,0.70872]
[1760363447642,0.43469,4137.6,4137.2,3.5557]
[1760363447847,0.43472,4137.3,4136.7,0.43477]
[1760363448145,3.2078,4137.6,4136.9,3.2817]
[1760363448340,0.00218488,4137.9,4137.8,0.43466]
[1760363448636,0.00218488,4137.9,4137.8,3.5557]
[1760363448842,1.52378488,4137.9,4137.6,0.43468]
[1760363449041,1.52378488,4137.9,4137.0,3.2817]
[1760363449042,1.52378488,4137.9,4136.8,3.2078]
[1760363449339,1.52378488,4137.9,4136.9,0.274]
[1760363449340,3.64255,4137.0,4136.9,0.274]
[1760363449548,3.6425,4137.5,4137.1,0.43473]
[1760363449743,1.52378488,4137.9,4137.1,3.2078]
[1760363449940,1.52378488,4137.9,4137.7,0.43467]
[1760363450234,1.52378488,4137.9,4137.8,3.5557]
[1760363450539,1.52378488,4137.9,4137.7,0.43467]
[1760363450540,1.52378488,4137.9,4137.7,0.43466]
[1760363450842,1.52378488,4137.9,4137.8,3.5557]
[1760363451244,0.60031358,4137.9,4137.8,3.5557]
[1760363451541,0.22,4139.3,4137.8,3.5557]
[1760363451542,0.22,4139.3,4139.2,3.2817]
[1760363451733,0.22,4139.3,4139.2,3.5557]
[1760363452246,0.22173372,4139.3,4139.2,3.5582567]
[1760363452740,0.22173372,4139.3,4139.2,0.2765567]
[1760363452943,0.22173372,4139.3,4138.0,0.43463]
[1760363452944,0.4346,4138.4,4138.0,0.43463]
[1760363453246,3.2078,4138.8,4138.1,0.274]
[1760363453639,0.22173372,4139.3,4139.1,0.43452]
[1760363453839,0.22173372,4139.3,4139.2,3.5557]
[1760363454039,3.2078,4141.1,4139.8,3.2817]
[1760363454243,3.2078,4141.1,4139.3,2.45366]
[1760363454244,3.2078,4141.1,4140.2,3.2817]
[1760363454441,3.2078,4141.1,4139.7,1.08614]
[1760363454442,0.43431,4141.2,4141.0,3.2817]
[1760363454752,3.1502,4141.6,4141.1,0.274]
[1760363455041,3.6421,4141.2,4141.1,0.00204581]
[1760363455245,3.6421,4141.2,4141.1,3.55774581]
[1760363455246,3.2078,4141.2,4141.1,3.55774581]
[1760363455435,0.00252834,4141.6,4141.1,0.27604581]
[1760363455635,0.00252834,4141.6,4141.5,3.2817]
[1760363455836,0.00252834,4141.6,4141.5,0.274]
[1760363456043,6.22729173,4141.6,4141.1,0.00204581]
[1760363456245,3.07709173,4141.6,4141.2,0.274]
[1760363456543,0.00252834,4141.6,4141.2,0.274]
[1760363456747,0.00252834,4141.6,4141.5,3.2817]
[1760363457245,0.00252834,4141.6,4141.5,6.4895]
[1760363457449,3.2298,4142.8,4142.5,0.43417]
[1760363457741,3.2298,4142.8,4142.6,0.273]
[1760363457742,3.66394,4142.8,4142.6,0.273]
[1760363457950,6.38,4142.8,4142.7,0.273]
[1760363458143,6.81414,4142.8,4142.7,0.273]
[1760363458347,3.2298,4142.8,4142.7,3.5547]
[1760363458544,6.38242662,4142.8,4142.7,0.273]
[1760363458745,3.1502,4142.7,4141.1,0.00204581]
[1760363458949,0.43428,4141.5,4141.2,0.273]
[1760363459154,3.2078,4141.6,4141.2,0.273]
[1760363459155,0.43429,4141.4,4141.2,0.273]
[1760363459448,3.1502,4141.3,4141.2,0.273]
[1760363459644,3.1502,4141.3,4141.2,0.17826289]
[1760363459953,0.43429,4141.4,4141.2,0.17826289]
[1760363460142,3.2078,4141.6,4141.3,3.2817]
[1760363460341,6.34822212,4141.3,4141.2,0.17826289]
[1760363460543,3.19802212,4141.3,4141.2,3.89426289]
[1760363460748,0.45856662,4142.8,4142.3,0.43419]
[1760363461045,0.43416,4142.6,4142.4,0.273]
[1760363461353,6.358,4142.5,4142.4,0.273]
[1760363461654,9.55148756,4142.5,4142.4,0.273]
[1760363461853,1.0856,4141.9,4141.1,0.00204581]
[1760363462047,3.1502,4141.8,4141.2,0.273]
[1760363462247,3.1502,4141.3,4141.2,0.273]
[1760363462642,3.1502,4140.5,4139.1,3.2078]
[1760363462951,3.2078,4140.9,4139.9,0.43444]
[1760363463252,3.2078,4140.9,4139.6,3.2078]
[1760363463253,0.43445,4139.9,4139.6,0.273]
[1760363463549,3.1502,4139.8,4139.6,0.27505735]
[1760363463741,6.79246,4139.7,4139.6,0.27505735]
[1760363463947,6.79246,4139.7,4139.6,0.00205735]
[1760363464148,9.56398086,4139.7,4138.0,0.43463]
[1760363464341,3.64236,4138.8,4138.1,0.273]
[1760363464544,3.1502,4138.7,4138.1,0.273]
[1760363464750,0.43467,4137.8,4137.4,0.273]
[1760363464953,7.621,4138.2,4137.5,0.273]
[1760363464954,6.358,4137.6,4137.5,0.273]
[1760363465253,6.29965131,4138.1,4137.7,0.43466]
[1760363465449,6.29965131,4138.1,4137.8,0.43465]
[1760363465450,3.09185131,4138.1,4137.8,0.43465]
[1760363465654,3.09185131,4138.4,4138.2,0.43461]
[1760363465858,3.09185131,4138.4,4138.3,0.273]
[1760363465859,3.1502,4138.4,4138.3,0.273]
[1760363466151,3.5848,4138.4,4138.3,0.273]
[1760363466348,3.17355902,4138.4,4137.9,0.273]
[1760363466548,3.2078,4138.2,4137.9,0.273]
[1760363466857,6.75838902,4138.1,4137.5,0.00229862]
[1760363467059,3.58488,4137.6,4137.5,0.00229862]
[1760363467240,3.2078,4137.7,4137.2,0.273]
[1760363467241,3.1502,4137.3,4137.2,0.273]
[1760363467647,3.1502,4137.2,4136.8,0.273]
[1760363467946,3.2078,4137.4,4136.8,0.273]
[1760363468147,3.2078,4136.9,4136.8,0.273]
[1760363468453,6.36045071,4136.9,4136.8,0.27567957]
[1760363468646,3.21025071,4136.9,4136.8,0.27567957]
[1760363469347,1.08644,4138.7,4136.8,0.27567957]
[1760363469348,3.2078,4138.3,4138.2,0.43462]
[1760363469556,3.2078,4138.9,4138.2,3.5547]
[1760363469748,3.2078,4138.9,4138.7,0.43456]
[1760363469951,3.1502,4139.6,4138.5,3.2078]
[1760363469952,3.2078,4139.5,4138.5,3.2078]
[1760363470148,3.2078,4139.5,4139.0,0.43452]
[1760363470357,3.21058661,4139.5,4139.4,0.43449]
[1760363470550,0.00278661,4139.5,4139.4,3.98919]
[1760363470853,0.00278661,4139.5,4139.4,0.70749]
[1760363471049,0.00278661,4139.5,4139.4,3.98919]
[1760363471657,3.2078,4140.6,4139.4,3.5547]
[1760363471852,3.2078,4140.1,4139.5,0.43448]
[1760363472053,3.2078,4139.6,4139.4,0.273]
[1760363472251,3.1502,4139.5,4139.4,0.273]
[1760363472451,3.1502,4139.5,4138.1,3.2078]
[1760363472452,3.1502,4138.3,4138.1,3.2078]
[1760363472654,0.00307015,4138.3,4138.2,0.273]
[1760363473653,3.2078,4139.4,4139.2,0.43451]
[1760363473847,3.2078,4140.1,4140.0,0.43443]
[1760363474056,3.64217,4140.6,4140.1,0.43441]
[1760363474256,3.2078,4140.6,4140.0,0.273]
[1760363474453,0.4344,4140.3,4140.0,0.273]
[1760363474649,1.263,4140.0,4138.3,3.2078]
[1760363474955,0.43451,4139.3,4138.7,0.43456]
[1760363475157,0.43451,4139.3,4138.4,0.273]
[1760363475158,0.43453,4139.1,4138.6,0.43457]
[1760363475660,3.64232,4139.2,4138.6,0.00255584]
[1760363475863,3.2078,4139.2,4139.0,0.43453]
[1760363476058,3.2078,4139.2,4138.6,0.00255584]
[1760363476059,3.2078,4139.8,4139.6,0.43446]
[1760363476257,0.00262283,4140.3,4140.2,3.70211]
[1760363476558,3.2078,4141.1,4140.2,3.2677]
[1760363476757,0.43425,4141.7,4140.9,3.2078]
[1760363476950,3.2078,4142.1,4141.0,0.273]
[1760363477149,0.43428,4141.5,4141.1,0.43431]
[1760363477353,3.08497803,4142.0,4141.1,3.2078]
[1760363477656,0.00210182,4142.0,4141.1,0.43431]
[1760363477851,0.00210182,4142.0,4140.3,1.08599]
[1760363477852,0.43435,4140.8,4140.3,0.43439]
[1760363478056,3.1307,4141.5,4140.4,0.273]
[1760363478057,0.43438,4140.5,4140.4,0.273]
[1760363478355,3.1307,4141.5,4140.4,0.273]
[1760363478356,3.2078,4141.6,4140.4,0.273]
[1760363478754,0.43438,4140.6,4140.4,0.273]
[1760363479259,0.43438,4140.6,4139.5,6.4755]
[1760363479260,6.3385,4140.5,4139.5,6.4755]
[1760363479560,6.3385,4140.5,4139.6,0.273]
[1760363479561,0.43446,4139.8,4139.6,0.273]
[1760363479758,3.1307,4139.7,4139.6,0.273]
[1760363479962,3.1307,4138.7,4138.0,0.43463]
[1760363480162,0.00172546,4138.7,4138.6,0.27555584]
[1760363480559,3.13242546,4138.7,4138.6,0.27555584]
[1760363481059,0.00172546,4138.7,4138.6,0.27555584]
[1760363481364,6.2782413,4138.7,4138.6,0.27555584]
[1760363481559,3.1475413,4138.7,4138.6,0.27555584]
[1760363481757,0.00172546,4138.7,4138.6,0.27555584]
[1760363481951,0.00172546,4138.7,4138.6,3.97783584]
[1760363482158,3.2078,4139.9,4138.6,3.54325584]
[1760363482359,3.1307,4140.3,4138.6,3.54325584]
[1760363482360,6.3385,4141.1,4139.8,3.2677]
[1760363482560,6.3385,4141.1,4140.0,3.2677]
[1760363482561,3.2078,4141.1,4140.0,3.2677]
[1760363482864,3.2078,4142.3,4141.1,0.43431]
[1760363483165,0.43427,4141.6,4141.2,0.7063]
[1760363483368,0.43424,4141.8,4141.4,0.43428]
[1760363483862,0.43424,4141.8,4141.3,0.272]
[1760363484052,3.20954176,4142.3,4141.4,3.2078]
[1760363484258,0.00174176,4142.3,4141.7,0.43425]
[1760363484453,0.00174176,4142.3,4141.8,0.272]
[1760363484661,0.43421,4142.2,4141.9,0.43423]
[1760363484860,3.1307,4141.9,4141.8,0.272]
[1760363485058,0.43422,4142.0,4141.8,0.272]
[1760363485565,0.43423,4142.0,4141.8,0.272]
[1760363485958,6.3385,4141.9,4141.8,0.272]
[1760363486262,9.44022126,4141.9,4141.8,0.272]
[1760363486463,6.3385,4141.9,4141.8,0.272]
[1760363486866,3.1307,4141.9,4141.8,0.272]
[1760363487166,0.00174176,4142.3,4141.8,0.272]
[1760363487167,0.00174176,4142.3,4142.2,3.2677]
[1760363487370,3.2078,4144.9,4143.5,3.2677]
[1760363487664,4.41051722,4145.4,4144.8,0.43392]
[1760363487665,3.1307,4145.4,4144.8,0.43392]
[1760363487868,3.1307,4145.4,4144.4,3.2078]
[1760363487869,3.2078,4146.4,4145.0,0.4339]
[1760363488070,6.5585,4145.3,4144.4,3.2078]
[1760363488273,3.56466,4144.6,4144.4,0.00269183]
[1760363488570,0.43392,4144.9,4144.5,3.97365]
[1760363488772,0.22265562,4145.3,4144.5,0.272]
[1760363488961,3.56466,4144.5,4144.4,0.00269183]
[1760363489275,0.43396,4144.5,4144.4,0.27469183]
[1760363489572,3.56466,4144.5,4144.4,0.27469183]
[1760363489772,6.76145222,4144.5,4144.4,0.27469183]
[1760363490068,6.76145222,4144.5,4143.0,0.43411]
[1760363490069,0.43406,4143.6,4143.0,0.43411]
[1760363490269,1.08513,4143.7,4143.1,0.272]
[1760363490458,1.08513,4143.7,4141.0,1.08582]
[1760363490459,0.43409,4143.2,4143.0,0.272]
[1760363490660,0.4341,4143.1,4143.0,0.272]